Cogmind - Beta 14 @@@ ROGUE MODE // 2025.03.29 @ 17:29:02 Player: SirusTheMadDJ Result: Destroyed by D-53 Grenadier with Mini Grenade Launcher Performance ------------- Evolutions (1) 500 Regions Visited (4) 800 Robots Destroyed (65) 325 Value Destroyed (1504) 1504 Prototype IDs (8) 160 Alien Tech Used (0) 0 Bonus (143) 143 TOTAL SCORE: 3432 Bonus ------- High Alert Combat Kills 199 Follower Combat Kills 14 Friendly Fire -70 Cogmind --------- Core Integrity 0/400 Matter 241/300 Energy 265/265 System Corruption 2% Temperature Cool (0) Movement Core (450) Ox8 Location -9/Mines Parts ------- > --- POWER (1) -------- Improved Ion Engine > --- PROPULSION (4) --- (None) > --- UTILITY (2) ------ Large Storage Unit Makeshift Terrain Scan Processor > --- WEAPON (2) ------- (None) > --- INVENTORY (15) --- Ion Engine High-capacity Storage Unit Hacking Suite EM Pulse Gun Improved EM Shotgun Improved EM Shotgun Improved Medium Laser Improved Medium Laser Improved Light Cannon Grenade Launcher Datajack Peak State ------------ > --- POWER ------------ Cooled Ion Engine > --- PROPULSION ------- Aluminum Leg Aluminum Leg Aluminum Leg Improved Aluminum Leg > --- UTILITY ---------- Medium Storage Unit Makeshift Terrain Scan Processor > --- WEAPON ----------- Beamcaster Improved Light Cannon > --- INVENTORY -------- High-capacity Storage Unit Hacking Suite EM Pulse Gun Improved EM Shotgun Improved EM Shotgun Improved Medium Laser Improved Medium Laser Grenade Launcher Rocket Launcher Datajack [Rating: 22] Favorites ----------- Power Ion Engine Engine Ion Engine Propulsion Aluminum Leg Leg Aluminum Leg Flight Unit Improved Flight Unit Utility Makeshift Terrain Scan Processor Device Tractor Beam Storage Small Storage Unit Processor Makeshift Terrain Scan Processor Weapon Improved Light Cannon Energy Gun Beamcaster Ballistic Gun Heavy Assault Rifle Ballistic Cannon Improved Light Cannon Launcher Rocket Launcher Build | -11 -10 -10 -9 -9 ------- Run | Yrd Mat Min Mat Min Slots Evolved 2 | . . . 2 . Power . | . . . . . Propulsion 2 | . . . 2 . Utility . | . . . . . Weapon . | . . . . . Parts Attached 61 | 7 1 5 45 3 Power 8 | 1 . 1 6 . Engine 8 | 1 . 1 6 . Core . | . . . . . Reactor . | . . . . . Propulsion 20 | 2 . . 18 . Treads . | . . . . . Leg 16 | 2 . . 14 . Wheel . | . . . . . Hover . | . . . . . Flight 4 | . . . 4 . Utility 7 | 1 1 1 4 . Device 1 | . 1 . . . Storage 5 | 1 . . 4 . Processor 1 | . . 1 . . Hackware . | . . . . . Protection . | . . . . . Artifact . | . . . . . Weapon 26 | 3 . 3 17 3 Energy Gun 4 | 1 . . 3 . Energy Cannon . | . . . . . Ballistic Gun 11 | 2 . 2 6 1 Ballistic Cannon 4 | . . . 4 . Launcher 7 | . . 1 4 2 Special Weapon . | . . . . . Impact Weapon . | . . . . . Slashing Weapon . | . . . . . Piercing Weapon . | . . . . . Special Melee Weapon . | . . . . . Unidentified Prototypes 5 | . . . 5 . Parts Lost 13 | . . 1 5 7 Power 1 | . . . 1 . Propulsion 6 | . . . 2 4 Utility 1 | . . 1 . . Weapon 5 | . . . 2 3 Highest Loss Streak 7 | . . 1 1 7 To Critical Strikes . | . . . . . Average Slot Usage (%) 98 | . 98 99 98 98 Engine 11 | . 14 14 10 11 Leg 37 | . 28 28 41 42 Device 3 | . 13 13 . . Storage 11 | . 14 14 11 11 Processor 7 | . . . 11 11 Energy Gun 3 | . . . 5 . Ballistic Gun 14 | . 28 27 8 10 Ballistic Cannon 5 | . . . 7 9 Peak Build Rating 22 | 6 7 10 22 18 Average Rating 14 | 5 6 7 18 17 On Entrance 8 | . 6 7 10 18 Naked Turns . | . . . . . Heaviest Build 35 | 14 14 14 35 35 Greatest Support 43 | 20 20 20 43 43 Greatest Overweight (x) 2 | 1 . . 2 2 Average Overweight (x) . | . . . . . Largest Inventory Capacity 20 | 8 8 8 20 15 Average Capacity 10 | 7 8 8 11 15 Most Carried 13 | 3 5 8 13 12 Average Carried 8 | 1 4 7 8 11 Final Capacity 15 | 8 8 8 15 15 Final Carried 12 | 3 5 7 12 11 Class Distribution -------------------- 67% | Scavenger-Mutant 31% | Mutant Dominant Class ---------------- Mutant | -10/Materials Mutant | -10/Mines Scavenger-Mutant | -9/Materials Scavenger-Mutant | -9/Mines Resources | -11 -10 -10 -9 -9 ----------- Run | Yrd Mat Min Mat Min Matter Collected 1516 | 279 . 165 1045 27 Remotely 147 | . . 147 . . Salvage Created 2127 | 98 . 165 1800 64 Parts 154 | 2 . 18 130 4 Haulers Intercepted 6 | . . . 6 . Recyclers Shooed 1 | . . . 1 . Parts Field Recycled . | . . . . . Retrieved Matter . | . . . . . Parts Self-Destructed . | . . . . . Prevented . | . . . . . Kills | -11 -10 -10 -9 -9 ------- Run | Yrd Mat Min Mat Min Combat Hostiles Destroyed 44 | . . 7 36 1 Guns 21 | . . 5 16 . Cannons 12 | . . . 12 . AOE 11 | . . 2 8 1 Classes Destroyed 12 | 1 . 3 7 1 Worker 1 | . . . 1 . Builder 2 | . . . 1 1 Hauler 6 | . . . 6 . Recycler 4 | 1 . . 2 1 Mechanic 1 | . . . 1 . Operator 3 | . . . 3 . Watcher 4 | . . . 4 . Swarmer 14 | . . 5 9 . Grunt 19 | . . 2 17 . Sentry 10 | . . . 10 . Zionite 1 | . . 1 . . Assembled 1 | . . . . 1 Best Kill Streak 8 | 1 . 3 8 3 Combat Bots Only 5 | . . 3 5 1 Max Kills in Single Turn 4 | 1 . 2 4 2 Gunslinging . | . . . . . Exploded 2 | . . 1 2 1 Melee . | . . . . . Uniques/NPCs Destroyed . | . . . . . Combat | -11 -10 -10 -9 -9 -------- Run | Yrd Mat Min Mat Min Hostile Shots Fired 238 | . . 67 126 45 Missed 77 | . . 25 38 14 Damage Taken 2371 | . . 480 1127 764 Core 449 | . . 45 109 295 Absorbed by Shields . | . . . . . Core Remaining (%) 91 | 100 . 82 . . Volleys Fired 149 | 3 5 33 101 7 Largest 2 | 2 2 2 2 2 Hottest 114 | 60 40 53 114 66 Shots Fired 288 | 6 10 65 195 12 Gun 221 | 6 10 61 139 5 Cannon 54 | . . . 52 2 Launcher 13 | . . 4 4 5 Special . | . . . . . Kinetic 225 | 3 10 61 144 7 Thermal 41 | . . . 41 . Explosive 13 | . . 4 4 5 Electromagnetic 9 | 3 . . 6 . Robot Hit Streak 12 | 1 1 12 12 2 Robot Miss Streak 8 | 2 3 5 8 2 Penetration Max . | . . . . . Secondary Targets 1 | . . . 1 . Max Gunslinging Chain 1 | . . . 1 . Shots Hit Robots 152 | 2 2 34 109 5 Core Hits 104 | 2 1 17 69 15 Critical Kills . | . . . . . Critical Parts Destroyed 1 | . . . 1 . Critical Strikes 2 | . . . 2 . Burn 1 | . . . 1 . Destroy 1 | . . . 1 . Melee Attacks . | . . . . . Impact . | . . . . . Slashing . | . . . . . Piercing . | . . . . . Sneak Attacks . | . . . . . Combat Hostiles . | . . . . . Follow-up Attacks . | . . . . . Damage Inflicted 3499 | 25 19 503 2608 344 Guns 1740 | 25 19 333 1300 63 Cannons 576 | . . . 553 23 Explosions 1183 | . . 170 755 258 Melee . | . . . . . Ramming . | . . . . . Kinetic 1693 | 25 19 333 1230 86 Thermal 773 | . . . 773 . Explosive 907 | . . 170 479 258 Electromagnetic 126 | . . . 126 . Impact . | . . . . . Slashing . | . . . . . Piercing . | . . . . . Highest Corruption 2 | . . . 2 2 Average Corruption 2 | . . . 2 2 Corruption Purged . | . . . . . Corruption Blocked . | . . . . . Effects 26 | . . . 21 5 Message Errors 4 | . . . 2 2 Matter Fused 9 | . . . 7 2 Heat Flow Errors 2 | . . . 2 . Energy Discharges 2 | . . . 2 . Data Loss (minor) 4 | . . . 4 . Data Loss (major) 2 | . . . 2 . Misfires 1 | . . . 1 . Alerts 1 | . . . . 1 Weapon Failures 1 | . . . 1 . Overload Shots . | . . . . . Overflow Damage 75 | . . 6 69 . Projectiles 14 | . . . 14 . Explosions 61 | . . 6 55 . Melee . | . . . . . Knockbacks 4 | . . . 4 . Impact . | . . . . . Kinetic 4 | . . . 4 . Secondary . | . . . . . Self-Inflicted Damage 242 | . . 41 149 52 Shots 5 | . . 1 2 2 Rammed . | . . . . . Targets Rammed . | . . . . . Kicked . | . . . . . Crushed . | . . . . . Highest Temperature 349 | . . 24 349 7 Average Temperature 56 | . . 10 61 4 Received Heat Transfer 441 | . . 126 297 18 Siege Activations . | . . . . . Robots Corrupted . | . . . . . Combat Hostiles . | . . . . . Parts Fried . | . . . . . Impact Corruptions . | . . . . . Robots Melted . | . . . . . Combat Hostiles . | . . . . . Parts Melted 1 | . . . 1 . Heat Transferred 1312 | . . . 1312 . Parts Sabotaged . | . . . . . Parts Stolen . | . . . . . Parts Stripped . | . . . . . Power Chain Reactions 2 | . . . 2 . Alert | -11 -10 -10 -9 -9 ------- Run | Yrd Mat Min Mat Min Peak Influence 770 | 5 18 221 770 290 Initial 275 | . 3 6 22 275 Average 320 | 2 16 54 482 280 Maximum Alert Level 3 | . . 1 3 1 Low Security (%) 38 | 100 100 97 13 5 Level 1 23 | . . 2 20 94 Level 2 32 | . . . 56 . Level 3 5 | . . . 10 . Level 4 . | . . . . . Level 5 . | . . . . . High Security . | . . . . . Max Security . | . . . . . Squads Dispatched 9 | . 1 . 8 . Investigation 8 | . 1 . 7 . Extermination . | . . . . . Reinforcement 1 | . . . 1 . Assault . | . . . . . Garrison . | . . . . . Intercept . | . . . . . Searches Triggered . | . . . . . Construction Impeded . | . . . . . Haulers Reinforced . | . . . . . Active Scanning Responses . | . . . . . Cargo Convoy Interrupts . | . . . . . Stealth | -11 -10 -10 -9 -9 --------- Run | Yrd Mat Min Mat Min Distress Signals 1 | . . . 1 . Communications Jammed . | . . . . . Distress Signals . | . . . . . Times Spotted 85 | . 2 9 52 22 Peak Tracking Total 10 | . 1 3 5 10 Tactical Retreats 3 | . . 1 2 . Traps | -11 -10 -10 -9 -9 ------- Run | Yrd Mat Min Mat Min Traps Triggered 3 | . 1 . 2 . Indirectly . | . . . . . Trap Hack Attempts . | . . . . . Triggered . | . . . . . Disarmed 1 | . . . 1 . Reprogrammed . | . . . . . Reused . | . . . . . Traps Extracted . | . . . . . Installed . | . . . . . Triggered 1 | . . 1 . . Machines | -11 -10 -10 -9 -9 ---------- Run | Yrd Mat Min Mat Min Machines Disabled 8 | . . . 8 . Max in Single Turn 4 | . . . 4 . Machines Repaired . | . . . . . Machines Dismantled . | . . . . . Machines Sabotaged . | . . . . . Overloaded Fab Kills . | . . . . . Hacking | -11 -10 -10 -9 -9 --------- Run | Yrd Mat Min Mat Min Machines Accessed 8 | . 1 . 7 . Terminals 6 | . 1 . 5 . Fabricators . | . . . . . Repair Stations . | . . . . . Recycling Units 1 | . . . 1 . Scanalyzers 1 | . . . 1 . Garrison Access . | . . . . . Total Hacks 26 | . 3 . 23 . Successful 12 | . . . 12 . Failed 14 | . 3 . 11 . Catastrophic 3 | . 1 . 2 . Database Lockouts . | . . . . . Manual 10 | . 3 . 7 . Terminals 21 | . 3 . 18 . Fabricators . | . . . . . Repair Stations . | . . . . . Recycling Units 3 | . . . 3 . Scanalyzers 2 | . . . 2 . Garrison Access . | . . . . . Terminal Hacks 11 | . . . 11 . Record 2 | . . . 2 . Prototype ID Bank 2 | . . . 2 . Branch Access Points 1 | . . . 1 . Alert Level 2 | . . . 2 . Unreport Threat 1 | . . . 1 . Disarm Traps 1 | . . . 1 . Recall Reinforcements 1 | . . . 1 . Zone Layout 1 | . . . 1 . Fabricator Hacks . | . . . . . Repair Station Hacks . | . . . . . Recycling Unit Hacks 1 | . . . 1 . Report Inventory 1 | . . . 1 . Scanalyzer . | . . . . . Garrison Access Hacks . | . . . . . Unauthorized Hacks . | . . . . . Terminals . | . . . . . Fabricators . | . . . . . Repair Stations . | . . . . . Recycling Units . | . . . . . Scanalyzers . | . . . . . Garrison Access . | . . . . . Data Cores Recovered 1 | . . . 1 . Used . | . . . . . Hacking Detections 7 | . 1 . 6 . Full Trace Events 6 | . . . 6 . Feedback Events . | . . . . . Feedback Blocked . | . . . . . Robot Schematics Acquired . | . . . . . Robots Built . | . . . . . Authchips . | . . . . . Time . | . . . . . Total Robot Build Rating . | . . . . . Part Schematics Acquired . | . . . . . Parts Built . | . . . . . Authchips . | . . . . . Time . | . . . . . Total Part Build Rating . | . . . . . Parts Repaired . | . . . . . Time . | . . . . . Parts Recycled . | . . . . . Recycled Matter . | . . . . . Retrieved Matter . | . . . . . Retrieved Components . | . . . . . Parts Scanalyzed . | . . . . . Part Schematics Acquired . | . . . . . Parts Damaged . | . . . . . Bothacking | -11 -10 -10 -9 -9 ------------ Run | Yrd Mat Min Mat Min Used RIF Installer . | . . . . . Robots Hacked . | . . . . . Non-combat . | . . . . . Combat . | . . . . . Robot Hacks Applied . | . . . . . Relay Couplers Released . | . . . . . Fabnet Peak Effective % . | . . . . . Robots Rewired . | . . . . . Allies Hacked . | . . . . . Hacks Repelled . | . . . . . Allies | -11 -10 -10 -9 -9 -------- Run | Yrd Mat Min Mat Min Total Allies 2 | . . 2 . . Largest Group 2 | . . 2 1 . Highest-Rated Group 43 | . . 43 31 . Highest-Rated Ally 31 | . . 31 31 . Total Orders . | . . . . . Ally Attacks 17 | . . 9 8 . Total Damage 209 | . . 63 146 . Kills 3 | . . . 3 . Allies Corrupted . | . . . . . Allies Melted . | . . . . . Intel | -11 -10 -10 -9 -9 ------- Run | Yrd Mat Min Mat Min Robot Analysis Total . | . . . . . Derelict Logs Recovered 1 | . . 1 . . Drone Launches . | . . . . . Drone Recoveries . | . . . . . Exploration | -11 -10 -10 -9 -9 ------------- Run | Yrd Mat Min Mat Min Turns Passed 3539 | 92 285 725 2015 422 Spaces Moved 2384 | 61 202 501 1320 300 Core 9 | 9 . . . . Treads . | . . . . . Legs 2307 | 52 202 501 1252 300 Wheels . | . . . . . Hover . | . . . . . Flight 68 | . . . 68 . Fastest Speed 31 | 50 120 120 31 120 Average Speed 117 | 114 120 120 116 121 Slowest Speed 260 | 120 120 120 200 260 Overloaded Moves . | . . . . . Propulsion Burnouts . | . . . . . Robots Hopped . | . . . . . Cave-ins Triggered . | . . . . . Exploration Rate (%) 58 | 5 32 98 93 66 Regions Visited 4 Branch Regions 2 Pre-discovered Areas 1 | . . . . 1 Known Exits Taken 1 | . . . 1 . Unknown Exits Taken 3 | 1 1 1 . . Scrap Searched 3 | . . 1 . 2 Spaces Dug . | . . . . . Terrain Destroyed 191 | . . 33 106 52 Melee . | . . . . . Projectile 6 | . . . 6 . AOE 185 | . . 33 100 52 Terrain Rammed . | . . . . . Walls Destroyed . | . . . . . Machines Disabled . | . . . . . Actions | -11 -10 -10 -9 -9 --------- Run | Yrd Mat Min Mat Min Total 2817 | 73 235 565 1599 345 Wait 188 | . 26 22 105 35 Move 2380 | 60 201 500 1319 300 Hop . | . . . . . Pick Up 18 | 3 2 3 10 . Fast Attach 15 | 6 1 . 8 . Attach 5 | . . 1 3 1 Detach . | . . . . . Swap 41 | 1 . 4 34 2 Drop 21 | . . 2 19 . Fire 149 | 3 5 33 101 7 Melee . | . . . . . Ram . | . . . . . Kick . | . . . . . Crush . | . . . . . Escape Stasis . | . . . . . Rewire . | . . . . . Trap . | . . . . . Miscellaneous . | . . . . . Route ------- -11/Scrapyard -10/Materials (discovered 2 exits: *Mat / [*Min]) -10/Mines (discovered 2 exits: *Mat x2) -9/Materials (discovered 4 exits: [*Mat x3] / *Min) -9/Mines (discovered 1 exit: [*Mat]) History --------- Turn | Location | Event 6 | -11/Scrapyard | Discovered new exit (range 14) 93 | -11/Scrapyard | Entered Materials 221 | -10/Materials | Discovered new exit (range 11) 306 | -10/Materials | Build established: Mutant 367 | -10/Materials | Discovered new exit (range 9) 378 | -10/Materials | Entered Mines 385 | -10/Mines | Received a Rocket Launcher from a helpful Derelict 714 | -10/Mines | Discovered new exit (range 14) 796 | -10/Mines | Discovered new exit (range 8) 1103 | -10/Mines | Entered Materials 1103 | -9/Materials | Accompanied by 1 ally 1103 | -9/Materials | Evolved 2 slots: Propulsion x2 1113 | -9/Materials | Led the pair of lost Derelicts to an unsafe place 1230 | -9/Materials | Discovered new exit (range 16) 1640 | -9/Materials | Discovered new exit (range 10) 1646 | -9/Materials | Build established: Scavenger-Mutant 2006 | -9/Materials | Discovered new exit (range 9) 2215 | -9/Materials | Discovered new exit (range 13) 2632 | -9/Materials | Identified exit to Mines 3118 | -9/Materials | Entered Mines 3124 | -9/Mines | Joined a pair of Derelicts in attacking an 0b10 outpost 3423 | -9/Mines | Discovered new exit (range 7) 3427 | -9/Mines | Learned location of Storage (-7) 3498 | -9/Mines | Assembled infested the area 3529 | -9/Mines | Core integrity fell below 50% 3537 | -9/Mines | Core integrity fell below 20% 3540 | -9/Mines | Destroyed by D-53 Grenadier with Mini Grenade Launcher Last Messages --------------- as-04289 destroyed. Rocket Launcher destroyed. as-92364 destroyed. as-95328 destroyed. as-03781 destroyed. as-97906 destroyed. The unstable cave ceiling collapses. U-05 Engineer destroyed. R-06 Scavenger destroyed. D-53 Grenadier destroyed. Imp. Aluminum Leg destroyed. Aluminum Leg destroyed. as-50502 destroyed. Rocket Launcher destroyed. Aluminum Leg destroyed. as-78597 destroyed. The unstable cave ceiling collapses. Aluminum Leg destroyed. Hvy. Assault Rifle destroyed. The unstable cave ceiling collapses. Map ----- +----------------------------------------------------+ | | | | | | | | | | | | | | | | | | | | | | | ?????????????????????????????????????????????????? | | ???????????????##########????????????????????????? | | ??????????????## ###??????????????????????? | | ??????????????# ##?????????????????????? | | ??????????????# #######????####???????? | | ??????????????#### ## ##?? ???????? | | ?????????????????## ## ## ?????????? | | ??????????????????# $#??????????? | | ####??????????????# a#??????????? | | # ##?????????????# ####???????? | | #?????????????## # a ##??????? | | ########???????#### a #??????? | | ########### a #????????? | | < ![]## #????????? | | # ######% ########%#?# #@d ###????????? | | ####????# [#??????#!## #????????? | | ????????# #?????## % * ## ! ???????? | | ?????#### #?????# % ##?# |%= ??????? | | ????## ##???## ! ###???# * ?????? | | ????# ##?## #?????? ##?????? | | ????# ### #?????? #???????? | | ????# ### #?????? ##????????? | | #???# #### #?# ??????? ###?????????? | | #???## #???### #?# ??????? ##???????????? | | #????###??????#### ##?# ???????#?????????????? | | ?????????????????# #?# ?????????????????????? | | ?????????????????# #?# # ?????????????????????? | | ?????????????????# #?###?###????????????????????? | | ?????????????????# ####?????????????????????????? | | #????????????????# #?????????????????????????? | | ##???????????????#### #?????????????????????????? | | #####??????????????# #?????????????????????????? | | ##?????????????# ######????????????????????? | | ##????????????# #????????????????????? | | ## #????????????# #????????????????????? | | ?### ##???????????###### #????????????????????? | | ???## #???????????###??# #????????????????????? | | ????# #???????????# ##?# #????????????????????? | | ????# ##?????????## #?# #????????????????????? | +----------------------------------------------------+ Best States ------------- Heat Dissipation 28 Energy Generation 14 Energy Capacity 280 Matter Stores 300 Matter Capacity 300 Sight Range 16 Terrain Scan Density 135 Evasion (%) 63 Item Schematics ----------------- None Robot Schematics ------------------ None Fabricated ------------ Nothing Alien Tech Used ----------------- None Achievements -------------- None Challenges ------------ None Game ------ Seed AdvancedCobblerChip Manual? 0 Play Time 00:33:06 Cumulative 11.6 hours Start 2025.03.29 @ 16:24:46 End 2025.03.29 @ 17:29:02 Sessions 3 Manual Loads 0 Difficulty Rogue Special Mode None Game No. 27 Rogue 27 Adventurer 0 Explorer 0 Win Type - Total 0 Types 0/0/0/0/0/0/0/0/0 Lore% 4 Gallery% 16 Achievement% 15 Wizard Run 0 Options --------- Layout 1 ASCII 0 Keyboard 0 Movement Mouse Keybinds 0 Fullscreen 1 Font 24/Smallcaps Map View 50x35 Zoom Use 0% Tactical HUD 0 Map Filters NONE Filters NONE Steam 1 RUN: 047b3cea-229f-4870-9f3e-d0ebd85f85aa